[Event "SVK ECo-C Extraliga 2021-22"]
[Site "Slovakia"]
[Date "2022.06.10"]
[Round "9.7"]
[White "Jacko, Vladimir"]
[Black "Brnusak, Tomas"]
[Result "1/2-1/2"]
[ECO "E09"]
[WhiteElo "2389"]
[BlackElo "2212"]
[Annotator "TA"]
[PlyCount "110"]
[EventDate "2021.10.21"]
[EventType "team-tourn"]
[EventCountry "SVK"]
[SourceTitle "playchess.com"]
[Source "ChessBase"]
[SourceQuality "1"]
[TimeControl "40/5400+30:1800+30"]

{[%evp 18,110,13,26,61,58,64,69,96,97,96,95,92,89,149,147,143,148,173,143,243,255,316,197,192,100,210,202,207,208,241,244,247,247,216,110,113,106,89,51,65,12,18,0,0,-4,14,34,35,33,44,34,63,57,196,131,153,147,136,43,38,8,21,-8,-8,-83,0,-8,-15,-84,-50,-84,-84,-161,-161,-161,-161,-313,-89,-288,-89,-872,-89,-103,0,-49,-54,-54,0,0,0,0,0,0,0]} 1. d4 {[%emt 0:04:27]} Nf6 {[%emt 0:00:06]} 2. c4 {[%emt 0:00:04]} e6 {[%emt 0:00:04]} 3. Nf3 {[%emt 0:00:08]} d5 {[%emt 0:00:05]} 4. Qc2 {[%emt 0:00:06]} c6 {[%emt 0:00:38]} 5. Nbd2 {[%emt 0:04:27]} Nbd7 {[%emt 0:02:16]} 6. g3 {[%emt 0:01:34]} Be7 {[%emt 0:03:58]} 7. Bg2 {[%emt 0:00:48]} O-O {[%emt 0:00:26]} 8. O-O {[%emt 0:00:07]} b6 {[%emt 0:10:45]} 9. e4 {[%emt 0:10:12]} dxc4 $1 {[%emt 0:03:26][%mdl 4] now scores much better than the old 9...Bb7.} 10. Nxc4 {[%emt 0:09:02]} Ba6 {[%emt 0:01:27][%cal Of6e4] E09: Closed Catalan: Main Line: 7 Qc2 c6 8 Nbd2.} 11. Rd1 {[%emt 0:19:51]} Rc8 {[%emt 0:18:05]} 12. b3 {[%emt 0:05:37]} c5 {[%emt 0:11:49] White is slightly better.} 13. d5 exd5 {[%emt 0:04:11]} 14. exd5 {[%emt 0:00:00] [#]} Bxc4 $146 {[%emt 0:00:06]} ({Predecessor:} 14... b5 15. Nce5 Qc7 16. Nc6 Bd6 17. Bb2 Rfe8 18. Ng5 b4 19. Ne4 Nxe4 20. Bxe4 g6 {1-0 (40) Ivanov,B (2128)-Ivanov,L (1949) Plovdiv 2010}) 15. bxc4 {[%emt 0:02:35]} Ne8 {[%emt 0:04:24]} (15... Bd6 $142) 16. Bh3 {[%emt 0:04:30]} Nd6 {[%emt 0:09:38]} 17. Bf4 {[%emt 0:08:17]} Ra8 {[%emt 0:01:03]} 18. Qa4 {[%emt 0:05:21]} f5 {[%emt 0:09:31]} (18... Nf6 $16) 19. Re1 $18 {[%emt 0:09:54]} Rf7 20. Re6 {[%emt 0:05:24]} Nf8 {[%emt 0:05:41]} 21. Re2 {[%emt 0:03:25]} ({White should play} 21. Ne5 $18 {Black must now prevent Nc6.} Rf6 22. Nc6 Nxe6 23. Nxd8 Nxf4 24. gxf4) 21... Ng6 {[%emt 0:00:50]} (21... g5 $16) 22. Bxd6 {[%emt 0:00:41]} Bxd6 {[%emt 0:00:02]} 23. Rae1 $1 {[%emt 0:00:19]} Qc7 {[%emt 0:02:01]} 24. Ng5 {[%emt 0:00:56]} Rf6 {[%emt 0:01:10]} 25. Re8+ {[%emt 0:01:11]} Rxe8 {[%emt 0:00:01]} 26. Qxe8+ {[%emt 0:00:15]} (26. Rxe8+ $18 Nf8 27. Ra8) 26... Nf8 $16 {[%emt 0:01:58][%cal Bg6f8,Bf8d7,Bd7e5,Be5c4][%mdl 32]} 27. Re6 {[%emt 0:01:07] 0x0.000bd68b2ba7dp-1022s more active pieces. The black rooks are badly placed.} Rxe6 {[%emt 0:02:16]} 28. Nxe6 {[%emt 0:00:40]} Qd7 {[%emt 0:00:14]} 29. Qxd7 {[%emt 0:01:01]} (29. Qa8 $14 g6 30. Bg2) 29... Nxd7 $11 {[%emt 0:00:05]} 30. Bxf5 $14 {[%emt 0:00:44][%cal Oe6g7][%mdl 4096] Endgame aiming for Nxg7! KBN-KBN} Ne5 {[%emt 0:00:09]} 31. Ng5 {[%emt 0:01:05]} Nxc4 {[%emt 0:02:06]} 32. Bxh7+ {[%emt 0:00:21]} Kf8 {[%emt 0:00:12]} 33. Kf1 {[%emt 0:01:06]} Ke7 {[%emt 0:01:07]} 34. Ke2 {[%emt 0:00:28]} Kf6 {[%emt 0:00:51]} 35. f4 {[%emt 0:01:38]} Bf8 {[%emt 0:03:07]} ({Better is} 35... b5 $14) 36. Ne4+ {[%emt 0:00:31]} (36. h4 $18) 36... Ke7 $16 {[%emt 0:00:29]} 37. Kd3 {[%emt 0:00:21]} Nd6 {[%emt 0:00:06] [#]} 38. Nxd6 {[%emt 0:00:44]} (38. Ng5 $1 $16) 38... Kxd6 {[%emt 0:00:03] KB-KB} 39. Kc4 {[%emt 0:00:07]} a6 {[%emt 0:00:13]} 40. Be4 {[%emt 0:00:33]} b5+ {[%emt 0:00:06]} 41. Kd3 {[%emt 0:30:43]} (41. Kb3 $11) 41... c4+ {[%emt 0:33:09]} (41... Be7 $17) 42. Kd4 $11 {[%emt 0:00:00]} Be7 {[%emt 0:00:00]} 43. g4 {[%emt 0:00:00]} (43. Bc2 $1 $11 {keeps the balance.}) 43... Bf6+ $17 {[%emt 0:00:00]} 44. Ke3 {[%emt 0:00:00]} g5 {[%emt 0:00:00]} 45. h3 {[%emt 0:00:00]} (45. fxg5 $17 Bxg5+ 46. Kf3) 45... a5 $19 {[%emt 0:00:00]} 46. fxg5 {[%emt 0:00:00]} Bxg5+ {[%emt 0:00:00]} 47. Kd4 $2 {[%emt 0:01:27]} (47. Ke2 {was the only defense.}) 47... Bf6+ {[%emt 0:00:00]} 48. Ke3 {[%emt 0:00:04] [#]} Ke5 $2 {[%emt 0:00:00]} (48... a4 $1 $19 {Hoping for ...b4.} 49. Kd2 b4) 49. Bf3 $2 {[%emt 0:00:35][%mdl 8192]} (49. Bg6 $17) 49... a4 $2 {[%emt 0:00:00]} (49... Bg5+ $19 {is more deadly.} 50. Kf2 a4) 50. Kd2 $17 {[%emt 0:00:48][%cal Og4g5]} a3 {[%emt 0:00:00]} (50... Kd6 $17) 51. Kc2 {[%emt 0:01:47]} (51. g5 $11 Bg7 52. Kc3) 51... b4 {[%emt 0:00:00][%mdl 1024] Black has compensation.} 52. Kb1 {[%emt 0:00:40]} Kd4 {[%emt 0:00:00]} (52... Bg5 $15) 53. d6 $11 {[%emt 0:00:06] The position is equal.} Kc3 {[%emt 0:00:00]} 54. Bd5 {[%emt 0:00:53]} Kd3 {[%emt 0:00:00]} 55. Bf7 {[%emt 0:00:10]} Kc3 {[%emt 0:00:00] What a fight!  Weighted Error Value: White=0.42/Black=0.45} 1/2-1/2

[Event "SVK ECo-C Extraliga 2021-22"]
[Site "Slovakia"]
[Date "2022.06.10"]
[Round "9.7"]
[White "Lipka, Juraj"]
[Black "Gzib, David"]
[Result "1-0"]
[ECO "A46"]
[WhiteElo "2379"]
[BlackElo "2040"]
[Annotator "TA"]
[PlyCount "66"]
[EventDate "2021.10.21"]
[EventType "team-tourn"]
[EventCountry "SVK"]
[SourceTitle "playchess.com"]
[Source "ChessBase"]
[SourceQuality "1"]
[TimeControl "40/5400+30:1800+30"]

{[%evp 9,66,52,58,60,59,35,31,23,28,17,30,27,30,28,31,31,30,25,168,173,155,172,210,129,129,143,133,142,95,118,200,189,208,185,263,262,258,253,252,252,272,116,170,166,174,160,227,187,193,56,240,202,300,160,160,156,160,76,170]} 1. d4 {[%emt 0:00:03]} Nf6 {[%emt 0:00:01]} 2. Nf3 {[%emt 0:00:18]} b5 {[%emt 0:00:09]} 3. e4 {[%emt 0:01:57]} Nxe4 {[%emt 0:03:19]} 4. Bxb5 {[%emt 0:00:44]} c6 {[%emt 0:03:24]} 5. Bd3 {[%emt 0:00:59]} d5 {[%emt 0:00:19]} 6. O-O {[%emt 0:03:56] [#] A46: 1 d4 Nf6 2 Nf3 e6: Torre, London and Colle Systems.} Bf5 $146 {[%emt 0:10:42]} ({Predecessor:} 6... Bg4 7. h3 Bh5 8. Re1 Nd6 9. Bg5 Qb6 10. Nbd2 e6 11. Nb3 Nd7 12. Qe2 h6 {1-0 (25) Voit,D (2343)-Purtseladze,M (2274) Chess.com INT 2020}) 7. Re1 {[%emt 0:04:04]} e6 {[%emt 0:01:43]} 8. Nbd2 {[%emt 0:06:52][%cal Rd2e4] White is slightly better.} Nd6 {[%emt 0:05:26]} 9. Nb3 {[%emt 0:15:21]} Nd7 {[%emt 0:06:18]} 10. Bf4 {[%emt 0:03:40][%cal Bc1f4,Bf4d6,Bd6e5][%mdl 32]} Bxd3 {[%emt 0:11:47]} 11. cxd3 {[%emt 0:01:21]} Be7 {[%emt 0:02:10]} 12. Rc1 {[%emt 0:02:35]} Rc8 {[%emt 0:01:25]} 13. Re2 {[%emt 0:02:16]} g5 {[%emt 0:04:44] [#]} (13... O-O $11) 14. Nxg5 $1 $18 {[%emt 0:18:24][%mdl 512]} Bxg5 {[%emt 0:01:57]} 15. Bxd6 {[%emt 0:00:06][%cal Oe2e6] And now Rxe6+! would win.} Nf6 {[%emt 0:01:32] [#]} (15... Bxc1 {gets mated.} 16. Rxe6+ $3 {[%mdl 512]}) 16. Be5 $1 {[%emt 0:14:15]} Bxc1 {[%emt 0:02:28]} 17. Qxc1 {[%emt 0:01:08]} Rg8 {[%emt 0:01:49]} 18. Rc2 {[%emt 0:00:30]} Nd7 {[%emt 0:20:01]} 19. Rxc6 {[%emt 0:08:08]} Nb6 {[%emt 0:02:42] [#]} (19... Rxc6 $16 20. Qxc6 Kf8) 20. Rc5 $1 {[%emt 0:00:30]} Rxc5 {[%emt 0:01:40]} 21. dxc5 {[%emt 0:00:35]} Nd7 {[%emt 0:01:26]} (21... Nc8 $142 22. g3 Qg5) 22. Bg3 {[%emt 0:02:12]} Qg5 {[%emt 0:04:42]} 23. Qc3 {[%emt 0:02:53]} f5 {[%emt 0:05:23] aiming for ...f4.} 24. c6 {[%emt 0:03:57]} Nb6 {[%emt 0:02:49] White must now prevent ...f4.} 25. h4 {[%emt 0:03:47]} (25. Qe1 $18) 25... Qg7 {[%emt 0:01:30] [#]} (25... Qg4 $16) 26. Qe1 $1 {[%emt 0:00:42]} Kf7 {[%emt 0:00:49] Threatens to win with ...f4.} 27. Nc5 {[%emt 0:00:19]} Qf6 {[%emt 0:01:13]} (27... e5 $16) 28. Be5 {[%emt 0:01:17]} Qxh4 {[%emt 0:01:15]} 29. Nb7 {[%emt 0:00:41] The board is on fire.} (29. Qa5 $18 Qe7 30. Nb3) 29... Nc8 {[%emt 0:00:43]} ({Black should play} 29... f4 $1 $14) 30. c7 {[%emt 0:00:20] g3 is the strong threat.} Qg5 {[%emt 0:01:02]} (30... f4 $142) 31. Nd8+ {[%emt 0:00:32]} (31. g3 $18) 31... Rxd8 $16 {[%emt 0:00:40]} 32. cxd8=Q {[%emt 0:00:30]} Qxd8 {[%emt 0:00:06]} 33. g3 {[%emt 0:00:16] White is more active.} (33. Qe3 $142) 33... h5 {[%emt 0:01:07] Weighted Error Value: White=0.28 (precise) /Black=0.36} (33... Ne7 $16 {is a better defense.}) 1-0

[Event "SVK ECo-C Extraliga 2021-22"]
[Site "Slovakia"]
[Date "2022.06.10"]
[Round "9.7"]
[White "Csonka, Attila Istvan"]
[Black "Zetocha, Claudiu"]
[Result "0-1"]
[ECO "B40"]
[WhiteElo "2334"]
[BlackElo "2287"]
[Annotator "TA"]
[PlyCount "70"]
[EventDate "2021.10.21"]
[EventType "team-tourn"]
[EventCountry "SVK"]
[SourceTitle "playchess.com"]
[Source "ChessBase"]
[SourceQuality "1"]
[TimeControl "40/5400+30:1800+30"]

{[%evp 9,70,-5,41,0,4,0,0,0,0,-2,29,17,33,37,45,12,49,31,54,3,4,0,27,-6,-6,-17,9,0,0,-14,0,-2,20,0,11,-12,4,4,114,-14,-9,-7,-11,-25,0,-22,9,-22,-29,-25,0,0,0,-245,-209,-315,-294,-303,-297,-405,-387,-466,-435]} 1. e4 {[%emt 0:00:05]} c5 {[%emt 0:00:07]} 2. Nf3 {[%emt 0:00:05]} e6 {[%emt 0:00:21]} 3. b3 {[%emt 0:00:08]} b6 {[%emt 0:06:10]} 4. Bb2 {[%emt 0:00:50]} Bb7 {[%emt 0:00:12]} 5. Qe2 {[%emt 0:00:11]} d6 {[%emt 0:01:37]} (5... Nc6 $11) 6. g3 {[%emt 0:01:24] B40: Sicilian: 2...e6, Unusual lines.} Nf6 {[%emt 0:02:35]} 7. d3 {[%emt 0:00:09]} Be7 {[%emt 0:02:03]} 8. Bg2 {[%emt 0:00:11] The position is equal.} O-O {[%emt 0:00:29]} 9. O-O {[%emt 0:00:08]} Nbd7 {[%emt 0:05:38]} 10. c4 {[%emt 0:01:19]} Qc7 {[%emt 0:03:04]} 11. Nc3 {[%emt 0:02:31]} a6 {[%emt 0:00:16]} 12. Rae1 {[%emt 0:05:16] [#]} Rfd8 $146 {[%emt 0:07:50]} ({Predecessor:} 12... Ne5 13. Nxe5 dxe5 14. f4 Nd7 15. f5 Qd6 16. Bh3 Rad8 17. Nd1 Nf6 18. Nf2 Bc8 {0-1 (57) Zuttioni,F (2177)-Zamar Kodelja,J (2249) Lignano Sabbiadoro 2017}) 13. h3 {[%emt 0:03:29]} Ne8 {[%emt 0:07:07]} 14. Nh2 {[%emt 0:05:12]} ({White should try} 14. d4 $14) 14... Bf6 $11 {[%emt 0:01:59]} 15. f4 {[%emt 0:01:41]} Bc6 {[%emt 0:02:48]} 16. Ng4 {[%emt 0:01:44]} Bd4+ {[%emt 0:03:12]} 17. Kh2 {[%emt 0:02:36]} Nef6 {[%emt 0:02:09]} 18. Ne3 {[%emt 0:01:29]} b5 {[%emt 0:09:34]} 19. Ncd1 {[%emt 0:07:05]} Bxb2 {[%emt 0:02:57]} 20. Qxb2 {[%emt 0:00:07]} bxc4 {[%emt 0:05:17]} 21. bxc4 {[%emt 0:00:15]} Qa5 {[%emt 0:02:41]} 22. g4 {[%emt 0:03:05]} Rab8 {[%emt 0:00:34]} 23. Qf2 {[%emt 0:00:07]} Qa3 {[%emt 0:01:41] [#]} (23... Ba4 $11 {remains equal.}) 24. g5 (24. e5 $1 $16 Bxg2 25. Nxg2) 24... Nh5 {[%emt 0:06:06]} 25. Qe2 {[%emt 0:04:05]} g6 {[%emt 0:00:18]} 26. Ng4 {[%emt 0:00:18]} Rf8 {[%emt 0:03:46]} 27. Rf3 {[%emt 0:25:34][%cal Od3d4]} Ba4 {[%emt 0:06:10]} 28. f5 {[%emt 0:08:22][%cal Od3d4]} Bxd1 {[%emt 0:02:04]} 29. Rxd1 {[%emt 0:01:01]} Qb2 {[%emt 0:03:16]} 30. Rd2 {[%emt 0:01:18]} Qd4 {[%emt 0:00:14]} 31. Qf1 $2 {[%emt 0:03:23] [#]} (31. Rf1 $11) 31... Ne5 {[%emt 0:00:14]} 32. Nh6+ {[%emt 0:02:36]} (32. Qf2 {keeps fighting.}) 32... Kg7 $19 {[%emt 0:00:30]} 33. f6+ {[%emt 0:00:13]} Kh8 {[%emt 0:00:07] Chess con chili.} 34. Rff2 {[%emt 0:00:06]} Qe3 35. Ng4 {[%emt 0:07:31]} Qg3+ {[%emt 0:02:31] Weighted Error Value: White=0.45/Black=0.20 (precise)} 0-1

[Event "SVK ECo-C Extraliga 2021-22"]
[Site "Slovakia"]
[Date "2022.06.10"]
[Round "9.7"]
[White "Kravec, Patrik"]
[Black "Klemanic, Emil"]
[Result "1-0"]
[ECO "A25"]
[WhiteElo "2140"]
[BlackElo "2104"]
[Annotator "TA"]
[PlyCount "100"]
[EventDate "2021.10.21"]
[EventType "team-tourn"]
[EventCountry "SVK"]
[SourceTitle "playchess.com"]
[Source "ChessBase"]
[SourceQuality "1"]
[TimeControl "40/5400+30:1800+30"]

{[%evp 16,100,6,-18,0,-1,6,-1,6,-7,-14,-41,20,-63,-52,-79,-62,-68,-72,-69,-19,-18,0,-18,0,-86,-86,-86,-86,-86,-77,-85,-85,-86,-84,-84,-84,-85,-34,-33,-10,-40,0,-20,10,0,75,39,83,-93,-87,-78,-77,-65,0,0,0,0,0,-27,0,0,0,0,0,0,0,0,0,-53,-53,-53,-53,-53,-53,-54,-54,-54,0,0,0,-55,0,0,0,-53,0]} 1. c4 {[%emt 0:01:01]} e5 {[%emt 0:00:09]} 2. Nc3 {[%emt 0:00:14]} Nc6 {[%emt 0:00:09]} 3. g3 {[%emt 0:00:18]} g6 {[%emt 0:00:20]} 4. Bg2 {[%emt 0:00:06]} Bg7 {[%emt 0:00:06]} 5. Nf3 {[%emt 0:01:01]} d6 {[%emt 0:00:10]} 6. O-O {[%emt 0:00:19]} f5 {[%emt 0:00:11]} 7. d3 {[%emt 0:04:38]} Nf6 {[%emt 0:00:37]} 8. Rb1 {[%emt 0:07:29]} O-O {[%emt 0:03:32]} 9. Bd2 {[%emt 0:05:29]} h6 {[%emt 0:01:58] A26: English Opening vs King's Indian with ...Nc6 and d3.} 10. Ne1 {[%emt 0:01:18]} Be6 {[%emt 0:00:41]} 11. Nd5 {[%emt 0:04:09]} Qd7 {[%emt 0:02:54] [#] The position is equal.} 12. f4 $146 {[%emt 0:08:49]} ({Predecessor:} 12. b4 a6 13. e3 g5 14. Qc2 f4 15. a4 Rae8 16. b5 axb5 17. axb5 Nd8 18. exf4 exf4 19. Nxf6+ Bxf6 20. gxf4 {0-1 (30) Werner,M-Herzog,W Germany South 1985}) 12... Rae8 {[%emt 0:04:37]} 13. Nc2 {[%emt 0:10:21]} e4 {[%emt 0:05:02]} ({Better is} 13... exf4 $15 14. gxf4 (14. Nxf4 Bf7 $11) 14... Bxd5 15. cxd5 Ne7) 14. Nc3 {[%emt 0:06:03]} (14. Nxf6+ $11 Bxf6 15. Bc3) 14... exd3 $15 {[%emt 0:06:08]} 15. exd3 {[%emt 0:00:29]} d5 {[%emt 0:00:24]} 16. b3 {[%emt 0:09:13]} Rd8 {[%emt 0:08:43] Strongly threatening ...dxc4.} 17. Be1 {[%emt 0:04:43]} dxc4 {[%emt 0:12:41]} (17... Rfe8 $15) 18. dxc4 $11 {[%emt 0:00:28]} Qf7 {[%emt 0:08:35]} 19. Qf3 {[%emt 0:08:40]} Ng4 {[%emt 0:05:46]} 20. Ne2 {[%emt 0:04:52]} (20. Rd1 $11) 20... Rfe8 $1 $17 {[%emt 0:02:12][%cal Oe6c4]} 21. h3 {[%emt 0:04:25]} Nf6 {[%emt 0:04:28]} 22. Nc3 {[%emt 0:04:21]} Ne4 $1 {[%emt 0:00:49]} 23. Nxe4 {[%emt 0:01:59]} fxe4 {[%emt 0:00:03]} 24. Qe2 {[%emt 0:02:30]} Nd4 {[%emt 0:01:40]} 25. Nxd4 {[%emt 0:00:55]} Bxd4+ {[%emt 0:00:04]} 26. Kh2 {[%emt 0:01:17]} c5 {[%emt 0:00:43]} (26... h5 $17) 27. g4 $15 {[%emt 0:02:01]} e3 {[%emt 0:00:50]} 28. Rc1 {[%emt 0:02:55]} Rf8 {[%emt 0:04:55][%cal Be8f8,Bf8f6,Bf6f5][%mdl 32]} 29. Bg3 {[%emt 0:01:16]} (29. Bh4 $5 {[%cal Rh4d8]}) 29... Qh7 {[%emt 0:00:25]} 30. Be4 {[%emt 0:01:06]} Rd7 {[%emt 0:07:34]} (30... Bc8 $11 {remains equal.}) 31. Qc2 {[%emt 0:00:29]} (31. f5 $5 {[%cal Rf5e6]} Bf7 32. Qd3 $14) 31... Rf6 {[%emt 0:07:35]} 32. Rcd1 $2 {[%emt 0:01:32] [#]} (32. Bh4 $16 {stays on course.}) 32... h5 $1 $17 {[%emt 0:02:52]} 33. g5 {[%emt 0:00:26] [#]} Rf5 {[%emt 0:01:57]} 34. h4 {[%emt 0:00:38] [#]} (34. Bh4 Qg7) 34... Qe7 {[%emt 0:02:18]} 35. Rde1 $1 $11 {[%emt 0:00:41]} Qd6 {[%emt 0:00:28]} 36. Rf3 {[%emt 0:00:48]} Rdf7 {[%emt 0:02:27][%cal Rf5f4]} 37. Ref1 {[%emt 0:00:18]} b6 {[%emt 0:01:52][%cal Of7e7]} 38. Qe2 {[%emt 0:00:39]} Bd7 {[%emt 0:01:03]} 39. Bxf5 {[%emt 0:00:41]} Bxf5 {[%emt 0:00:44]} 40. Rxe3 {[%emt 0:00:25]} Bxe3 41. Qxe3 {[%emt 0:30:06]} Re7 {[%emt 0:31:29]} 42. Qf2 {[%emt 0:00:00]} (42. Qf3 $1 $11) 42... Qd3 $36 {[%emt 0:00:00][%mdl 2048] White must now prevent ...Re2. White is under pressure.} 43. Re1 {[%emt 0:00:00] Prevents Re2.} Rxe1 {[%emt 0:00:00]} 44. Qxe1 {[%emt 0:00:00][%mdl 4096] Endgame KQB-KQB} Be4 $1 {[%emt 0:00:00]} 45. Qf2 {[%emt 0:00:00][%cal Of4f5]} Qd1 {[%emt 0:00:00][%csl Ge4][%cal Rd1h1][%mdl 1024] Black has compensation.} 46. Kh3 {[%emt 0:00:00]} Bf5+ {[%emt 0:00:00]} ({Black should play} 46... Kf7 $15) 47. Kh2 $11 {[%emt 0:00:00]} Be4 {[%emt 0:00:00]} (47... Kf7 $11) 48. Kh3 $1 $15 {[%emt 0:00:00]} Bf5+ {[%emt 0:00:00]} (48... Kf7 $15) 49. Kh2 $11 {[%emt 0:00:00]} Be4 {[%emt 0:00:00]} (49... Kf7 $11) 50. Kh3 $1 $15 {[%emt 0:00:00]} Bf5+ {[%mdl 32768] Weighted Error Value: White=0.20 (precise) /Black=0.16 (very precise) . Loss on time!?} (50... Kf7 $15) 1-0

[Event "SVK ECo-C Extraliga 2021-22"]
[Site "Slovakia"]
[Date "2022.06.10"]
[Round "9.8"]
[White "Petran, Peter"]
[Black "Molnar, Erno"]
[Result "1/2-1/2"]
[ECO "A20"]
[WhiteElo "2240"]
[BlackElo "2223"]
[Annotator "TA"]
[PlyCount "94"]
[EventDate "2021.10.21"]
[EventType "team-tourn"]
[EventCountry "SVK"]
[SourceTitle "playchess.com"]
[Source "ChessBase"]
[SourceQuality "1"]
[TimeControl "40/5400+30:1800+30"]

{[%evp 14,94,25,0,0,0,-4,0,20,14,20,0,0,0,14,0,12,0,11,0,0,-36,-16,-46,-21,-43,-19,-22,-19,-26,-4,-4,-4,-4,0,-19,-18,-22,0,0,0,0,0,0,0,0,0,0,23,23,23,23,23,23,23,0,0,0,22,22,23,16,21,16,17,0,50,21,21,0,25,25,31,0,0,0,0,0,18,0,0,0,32]} 1. c4 {[%emt 0:00:07]} e5 {[%emt 0:00:07]} 2. g3 {[%emt 0:00:13]} Nf6 {[%emt 0:01:20]} 3. Bg2 {[%emt 0:00:05]} c6 {[%emt 0:00:57]} 4. d4 {[%emt 0:00:08]} Bb4+ {[%emt 0:00:15]} 5. Bd2 {[%emt 0:00:06]} Bxd2+ {[%emt 0:00:06]} 6. Qxd2 {[%emt 0:00:11]} d6 {[%emt 0:00:17]} 7. Nc3 {[%emt 0:00:25]} O-O {[%emt 0:00:10]} 8. e4 {[%emt 0:02:32] [#]} b5 $146 {[%emt 0:01:37] A20: English Opening: 1...e5.} ({Predecessor:} 8... Be6 9. b3 Qa5 10. Nge2 b5 11. d5 Bc8 12. cxb5 cxb5 13. a3 Qb6 14. O-O a5 15. Rfb1 Na6 16. b4 {1-0 (66) Balog,I (2550)-Balogh,C (2589) Hungary 2019}) 9. cxb5 {[%emt 0:01:13]} cxb5 {[%emt 0:01:46]} 10. Nge2 {[%emt 0:02:46]} a6 {[%emt 0:11:59]} 11. O-O {[%emt 0:00:18]} Bb7 {[%emt 0:05:27]} 12. a3 {[%emt 0:07:21]} Nc6 {[%emt 0:04:01]} 13. Rad1 {[%emt 0:03:46]} Rc8 {[%emt 0:05:42]} 14. b4 {[%emt 0:13:36]} Qb6 {[%emt 0:04:22]} 15. d5 {[%emt 0:03:36]} Ne7 {[%emt 0:00:42]} 16. h3 {[%emt 0:15:20]} Nd7 {[%emt 0:10:46]} 17. Nc1 f5 {[%emt 0:04:29]} (17... Qc7 $5 {[%cal Rc7c3]} 18. N1e2 Nb6 $15) 18. exf5 {[%emt 0:16:00]} Nxf5 {[%emt 0:02:12]} 19. N1e2 Ne7 {[%emt 0:15:20]} 20. Ne4 {[%emt 0:03:44]} Nf6 {[%emt 0:01:15]} ({Don't play} 20... Bxd5 21. Nxd6 Qxd6 22. Bxd5+ Nxd5 23. Qxd5+ Qxd5 24. Rxd5 $14) 21. N2c3 {[%emt 0:04:02]} Rc4 {[%emt 0:03:28]} 22. Nxf6+ {[%emt 0:05:00]} Rxf6 {[%emt 0:01:43]} 23. Rc1 {[%emt 0:03:40]} Rd4 {[%emt 0:05:15]} 24. Qc2 {[%emt 0:00:50]} Rf8 {[%emt 0:02:01]} (24... Nxd5 $2 25. Nxd5 Rxd5 26. Qb3 $18) 25. Ne2 {[%emt 0:04:34]} Rc4 {[%emt 0:03:57]} (25... Rc8 $5 {[%cal Rc8c2]} 26. Qb2 Rdc4 $15) 26. Qd2 {[%emt 0:00:12]} Rxc1 {[%emt 0:02:02]} 27. Nxc1 {[%emt 0:00:28]} Nf5 {[%emt 0:08:37] [#] And now ...Nxg3 would win.} 28. Ne2 {[%emt 0:00:30]} Rc8 {[%emt 0:00:45]} 29. Be4 {[%emt 0:01:38]} Nd4 {[%emt 0:01:38]} 30. Re1 {[%emt 0:06:47]} Rc2 {[%emt 0:01:38]} 31. Qd3 {[%emt 0:01:58]} Rxe2 {[%emt 0:00:38]} 32. Rxe2 {[%emt 0:00:06]} Nxe2+ {[%emt 0:00:03]} 33. Qxe2 $11 {[%emt 0:00:01][%mdl 4096] Endgame KQB-KQB} Qc7 {[%emt 0:01:28]} 34. Qd3 {[%emt 0:02:29]} (34. Qh5 {with more complications.} g6 35. Qg5 Kf7 36. Qe3) 34... g6 {[%emt 0:00:16]} 35. h4 {[%emt 0:00:10][%cal Bh3h4,Bh4h5,Bh5h6][%mdl 32]} Qf7 {[%emt 0:00:39]} 36. Qd2 {[%emt 0:01:06]} Kg7 {[%emt 0:00:52]} 37. h5 {[%emt 0:00:25]} Qe7 {[%emt 0:00:11]} 38. h6+ {[%emt 0:01:26]} Kf7 {[%emt 0:00:39]} 39. Qe3 {[%emt 0:00:05]} Kg8 {[%emt 0:00:31]} ({Better is} 39... Qc7 $11) 40. Qb6 {[%emt 0:01:24]} (40. Qa7 $5 {[%cal Ra7b8]} Qd7 41. Qe3 $11) 40... Kf7 {[%emt 0:00:27]} 41. Qa7 {[%emt 0:30:25] [#] Qb8 is the strong threat.} Qc7 {[%emt 0:30:15] Against Qb8} 42. Kh2 {[%emt 0:00:19]} Qd7 {[%emt 0:00:00]} 43. Qe3 {[%emt 0:00:00]} (43. g4 $5) 43... Bc8 {[%emt 0:00:00] The position is equal.} 44. Kg1 {[%emt 0:00:00]} Qg4 {[%emt 0:00:00]} 45. Bf3 {[%emt 0:00:00]} Qf5 {[%emt 0:00:00]} 46. Be4 {[%emt 0:00:00]} Qg4 {[%emt 0:00:00]} 47. Bf3 {[%emt 0:00:00]} Qf5 {Weighted Error Value: White=0.09 (flawless) /Black=0.07 (flawless)} 1/2-1/2